Cogmind - Beta 12 @@@ ROGUE MODE // 2023.12.11 @ 03:07:29 Player: kicktown Result: Destroyed by E-15 Imp with Backup Laser III Performance ------------- Evolutions (5) 2500 Regions Visited (11) 2200 Robots Destroyed (41) 205 Value Destroyed (1565) 1565 Prototype IDs (8) 160 Alien Tech Used (0) 0 Bonus (581) 581 TOTAL SCORE: 7211 Bonus ------- High Alert Combat Kills 52 Follower Combat Kills 529 Cogmind --------- Core Integrity 0/1000 Matter 256/300 Energy 66/100 System Corruption 6% Temperature Cool (9) Movement Core (50) Location -5/Factory Parts ------- > --- POWER (2) -------- (None) > --- PROPULSION (7) --- (None) > --- UTILITY (6) ------ Advanced Targeting Computer > --- WEAPON (2) ------- (None) > --- INVENTORY (5) ---- Improved Hardlight Generator Improved System Restoration Module Improved System Restoration Module Peak State ------------ > --- POWER ------------ F-cell Engine Light Antimatter Reactor > --- PROPULSION ------- Flexi-carbon Leg Armored Huge Wheel Armored Huge Wheel Armored Huge Wheel > --- UTILITY ---------- Advanced Heat Sink Huge Storage Unit Advanced Targeting Computer Improved Medium Armor Plating Improved Hardlight Generator Improved Shield Generator > --- WEAPON ----------- Antimatter Cannon Impact Mace > --- INVENTORY -------- Light Nuclear Core Improved Airjet Improved Airjet Linear Gravjet Small Storage Unit High-capacity Matter Pod Seismic Detector Focal Shield Improved Hardlight Generator Improved Hardlight Generator Improved Hardlight Generator Improved System Restoration Module Improved System Restoration Module Hypervelocity Gauss Rifle Mini Grenade Launcher Remote Datajack [Rating: 81] Favorites ----------- Power F-cell Engine Engine F-cell Engine Power Core Enhanced Nuclear Core Reactor Light Antimatter Reactor Propulsion Improved Carbon-fiber Leg Treads Heavy Treads Leg Improved Carbon-fiber Leg Wheel Armored Huge Wheel Hover Unit Gravmag System Flight Unit Flight Unit Utility Small Storage Unit Device Advanced Weight Redist. System Storage Small Storage Unit Processor Targeting Computer Hackware System Shield Protection Improved Propulsion Shielding Weapon Impact Mace Energy Gun Particle Gun Energy Cannon Heavy Phase Cannon Ballistic Gun Improved Assault Rifle Ballistic Cannon Antimatter Cannon Launcher Mini Grenade Launcher Special Weapon Remote Datajack Impact Weapon Impact Mace Piercing Weapon Plasma Lance Build | -11 -10 -10 -9 -8 -7 -7 -7 -6 -6 -6 -5 ------- Run | Jun Mat Min Mat Mat Fac Low Low Fac Was Fac Fac Slots Evolved 10 | . . . 2 2 2 . . 2 . . 2 Power 1 | . . . . . 1 . . . . . . Propulsion 5 | . . . 2 1 . . . . . . 2 Utility 4 | . . . . 1 1 . . 2 . . . Weapon . | . . . . . . . . . . . . Parts Attached 94 | . 10 8 3 4 21 2 2 13 4 10 17 Power 13 | . . 1 . . 3 . . 5 . . 4 Engine 6 | . . 1 . . . . . 3 . . 2 Core 6 | . . . . . 3 . . 2 . . 1 Reactor 1 | . . . . . . . . . . . 1 Propulsion 31 | . 4 6 2 1 7 1 2 2 2 3 1 Treads 1 | . . . . . . . . . 1 . . Leg 10 | . . . . . 6 1 . 2 . 1 . Wheel 3 | . . . . . . . . . . 2 1 Hover 3 | . 2 . . . 1 . . . . . . Flight 14 | . 2 6 2 1 . . 2 . 1 . . Utility 27 | . 2 1 . 1 4 . . 5 2 7 5 Device 12 | . . 1 . . 3 . . 2 . 4 2 Storage 3 | . 2 . . . . . . . . . 1 Processor 5 | . . . . 1 . . . 3 . 1 . Hackware 1 | . . . . . 1 . . . . . . Protection 6 | . . . . . . . . . 2 2 2 Artifact . | . . . . . . . . . . . . Weapon 23 | . 4 . 1 2 7 1 . 1 . . 7 Energy Gun 7 | . 2 . . 1 3 . . . . . 1 Energy Cannon 1 | . . . . . . . . . . . 1 Ballistic Gun 4 | . 1 . . 1 2 . . . . . . Ballistic Cannon 4 | . . . . . . 1 . 1 . . 2 Launcher 3 | . 1 . 1 . . . . . . . 1 Special Weapon 1 | . . . . . 1 . . . . . . Impact Weapon 2 | . . . . . 1 . . . . . 1 Slashing Weapon . | . . . . . . . . . . . . Piercing Weapon 1 | . . . . . . . . . . . 1 Special Melee Weapon . | . . . . . . . . . . . . Unidentified Prototypes 8 | . . . . 1 3 . . 2 . 1 1 Parts Lost 28 | . . 1 . . 3 1 2 1 . 3 17 Power 4 | . . . . . . . 1 . . . 3 Propulsion 10 | . . 1 . . 3 1 1 . . . 4 Utility 11 | . . . . . . . . 1 . 3 7 Weapon 3 | . . . . . . . . . . . 3 Highest Loss Streak 13 | . . 1 . . 1 1 2 1 . 2 13 To Critical Strikes . | . . . . . . . . . . . . Average Slot Usage (%) 83 | . 41 73 81 94 82 98 81 83 88 89 77 Engine 6 | . . . 11 9 . . . 5 13 13 8 Core 4 | . . . . . 10 15 12 4 . . . Treads 1 | . . . . . . . . . 2 4 . Leg 14 | . . . . . 18 31 21 15 20 15 4 Wheel 3 | . . . . . . . . . . 3 16 Flight 5 | . 12 27 42 45 13 . 3 7 . . . Device 13 | . . 4 11 9 6 15 15 17 17 15 16 Storage 6 | . 3 14 11 9 7 7 7 6 6 6 4 Processor 8 | . . . . 6 7 7 7 14 13 11 5 Protection 1 | . . . . . . . . . 2 4 4 Energy Gun 1 | . 9 13 . 6 3 5 . . . . . Ballistic Gun 1 | . 8 13 . . 3 . . . . . . Ballistic Cannon 3 | . . . . . . 1 5 2 6 6 4 Impact Weapon 4 | . . . . . . 7 7 6 6 6 4 Naked Turns . | . . . . . . . . . . . . Heaviest Build 136 | . 7 9 10 12 27 29 29 43 44 50 136 Greatest Support 93 | 3 12 8 16 20 65 78 50 59 59 65 93 Greatest Overweight (x) 3 | . 1 1 . . 1 . . . . 1 3 Average Overweight (x) . | . . . . . . . . . . . . Largest Inventory Capacity 25 | 5 8 8 8 8 8 8 8 8 8 8 25 Average Capacity 9 | 5 5 8 8 8 8 8 8 8 8 8 17 Most Carried 18 | 1 7 8 7 8 8 8 8 8 8 8 18 Average Carried 8 | . 3 7 6 7 7 7 7 7 7 7 11 Final Capacity 8 | 5 8 8 8 8 8 8 8 8 8 8 5 Final Carried 8 | 1 7 8 6 8 8 8 8 8 8 8 3 Class Distribution -------------------- 78% | Mutant 15% | Scavenger-Mutant 5% | Scavenger-Sprinter Dominant Class ---------------- Mutant | -10/Materials Mutant | -10/Mines Scavenger-Sprinter | -9/Materials Scavenger-Sprinter | -8/Materials Scavenger-Mutant | -7/Factory Scavenger-Mutant | -7/Lower Caves Mutant | -7/Lower Caves Mutant | -6/Factory Mutant | -6/Waste Mutant | -6/Factory Mutant | -5/Factory Resources | -11 -10 -10 -9 -8 -7 -7 -7 -6 -6 -6 -5 ----------- Run | Jun Mat Min Mat Mat Fac Low Low Fac Was Fac Fac Matter Collected 1557 | 190 19 62 . 150 251 133 103 130 59 99 361 Remotely 236 | . . . . . . 133 103 . . . . Salvage Created 1196 | . 19 66 3 . 251 8 . 191 . 201 457 Parts 63 | . 7 11 2 . 14 2 . 6 . 4 17 Haulers Intercepted 1 | . . . . . . . . . . 1 . Recyclers Shooed . | . . . . . . . . . . . . Parts Field Recycled . | . . . . . . . . . . . . Retrieved Matter . | . . . . . . . . . . . . Parts Self-Destructed 3 | . . . . . . 3 . . . . . Prevented . | . . . . . . . . . . . . Kills | -11 -10 -10 -9 -8 -7 -7 -7 -6 -6 -6 -5 ------- Run | Jun Mat Min Mat Mat Fac Low Low Fac Was Fac Fac Combat Hostiles Destroyed 37 | . 3 5 . . 5 1 . 2 . 3 18 Melee 8 | . . . . . . 1 . 2 . 1 4 Guns 10 | . . 5 . . 5 . . . . . . Cannons 8 | . . . . . . . . . . 1 7 AOE 3 | . 3 . . . . . . . . . . Classes Destroyed 11 | . 2 . 1 . 2 1 . 2 . 1 2 Worker 1 | . 1 . . . . . . . . . . Hauler 1 | . . . . . . . . . . 1 . Recycler 1 | . . . . . . . . 1 . . . Watcher 1 | . . . 1 . . . . . . . . Swarmer 18 | . 3 5 . . . . . . . . 10 Grunt 9 | . . . . . 4 . . . . 3 2 Brawler 1 | . . . . . 1 . . . . . . Sentry 2 | . . . . . . . . . . . 2 Specialist 2 | . . . . . . . . . . . 2 Programmer 4 | . . . . . . . . 2 . . 2 Thief 1 | . . . . . . 1 . . . . . Best Kill Streak 6 | . 4 3 1 . 3 1 . 1 . 3 6 Combat Bots Only 6 | . 3 3 . . 3 1 . 1 . 3 6 Max Kills in Single Turn 3 | . 3 1 1 . 1 1 . 1 . 1 1 Gunslinging . | . . . . . . . . . . . . Exploded 3 | . 3 . . . . . . . . . . Melee 1 | . . . . . . 1 . 1 . 1 1 Uniques/NPCs Destroyed . | . . . . . . . . . . . . Combat | -11 -10 -10 -9 -8 -7 -7 -7 -6 -6 -6 -5 -------- Run | Jun Mat Min Mat Mat Fac Low Low Fac Was Fac Fac Damage Taken 5044 | . 7 117 61 . 651 140 45 308 24 728 2963 Core 1366 | . 7 17 . . 62 45 21 54 . 159 1001 Absorbed by Shields 328 | . . . . . . . . . . . 328 Redirected to Shielding 403 | . . . . . . . . . 15 226 162 Regen/Repaired (Parts) 60 | . . . . . . . . . 1 59 . Core Remaining (%) 90 | 100 . 90 100 100 . . 81 . . 74 . Volleys Fired 100 | . 5 7 2 2 30 . . . . 11 43 Largest 2 | . 2 2 1 1 1 . . . . 1 1 Hottest 90 | . 60 60 30 30 30 . . . . 40 90 Shots Fired 109 | . 6 14 2 2 30 1 . . . 11 43 Gun 44 | . 2 14 . . 27 1 . . . . . Cannon 53 | . . . . . . . . . . 11 42 Launcher 12 | . 4 . 2 2 3 . . . . . 1 Special . | . . . . . . . . . . . . Kinetic 86 | . 1 7 . . 27 . . . . 11 40 Thermal 11 | . 1 7 . . . 1 . . . . 2 Explosive 12 | . 4 . 2 2 3 . . . . . 1 Electromagnetic . | . . . . . . . . . . . . Robot Hit Streak 28 | . 1 3 4 . 27 . . . . 28 13 Robot Miss Streak 2 | . 2 2 1 . . . . . . 2 2 Penetration Max . | . . . . . . . . . . . . Secondary Targets 1 | . . 1 . . . . . . . . . Max Gunslinging Chain 1 | . . 1 . . . . . . . . . Shots Hit Robots 103 | . 2 7 1 . 27 1 . 8 . 9 48 Core Hits 47 | . 7 6 1 . 13 1 . 1 . 4 14 Critical Kills 2 | . . . . . . 1 . . . . 1 Critical Parts Destroyed 8 | . . . . . . . . 1 . 1 6 Critical Strikes 15 | . . . . . . 1 . 1 . 2 11 Blast 5 | . . . . . . . . . . 1 4 Smash 10 | . . . . . . 1 . 1 . 1 7 Melee Attacks 130 | . . . . . . 2 . 28 18 35 47 Impact 130 | . . . . . . 2 . 28 18 35 47 Slashing . | . . . . . . . . . . . . Piercing . | . . . . . . . . . . . . Sneak Attacks 2 | . . . . . . . . 1 . 1 . Combat Hostiles . | . . . . . . . . . . . . Follow-up Attacks . | . . . . . . . . . . . . Damage Inflicted 3673 | . 265 89 44 . 415 46 . 428 . 431 1955 Guns 504 | . 10 89 . . 405 . . . . . . Cannons 1411 | . . . . . . . . . . 190 1221 Explosions 299 | . 255 . 44 . . . . . . . . Melee 1435 | . . . . . . 46 . 428 . 241 720 Ramming 24 | . . . . . 10 . . . . . 14 Kinetic 1816 | . 10 33 . . 405 . . . . 190 1178 Thermal 99 | . . 56 . . . . . . . . 43 Explosive 299 | . 255 . 44 . . . . . . . . Electromagnetic . | . . . . . . . . . . . . Impact 1435 | . . . . . . 46 . 428 . 241 720 Slashing . | . . . . . . . . . . . . Piercing . | . . . . . . . . . . . . Highest Corruption 6 | . . . . . 1 1 1 2 2 4 6 Average Corruption 1 | . . . . . 1 1 1 1 2 3 3 Corruption Purged . | . . . . . . . . . . . . Corruption Blocked . | . . . . . . . . . . . . Effects 33 | . . . . . 7 5 2 1 5 13 . Message Errors 8 | . . . . . 2 . . . 1 5 . Matter Fused 13 | . . . . . 4 3 1 1 3 1 . Heat Flow Errors 3 | . . . . . . . . . . 3 . Energy Discharges 3 | . . . . . . . 1 . . 2 . Data Loss (minor) 4 | . . . . . 1 . . . 1 2 . Data Loss (major) 1 | . . . . . . 1 . . . . . Misfires 1 | . . . . . . 1 . . . . . Overload Shots . | . . . . . . . . . . . . Overflow Damage 630 | . 2 . . . 6 . . 145 . 97 380 Projectiles 57 | . . . . . . . . . . . 57 Explosions 8 | . 2 . . . 6 . . . . . . Melee 565 | . . . . . . . . 145 . 97 323 Knockbacks 27 | . . . . . . . . 1 . 5 21 Impact 7 | . . . . . . . . 1 . . 6 Kinetic 17 | . . . . . . . . . . 4 13 Secondary 3 | . . . . . . . . . . 1 2 Self-Inflicted Damage 30 | . . . . . 24 . . . . . 6 Shots 1 | . . . . . 1 . . . . . . Rammed 5 | . . . . . . . . . . . 5 Targets Rammed 9 | . . . . . 4 . . . . . 5 Kicked 4 | . . . . . 4 . . . . . . Crushed . | . . . . . . . . . . . . Highest Temperature 293 | . 14 28 11 9 19 34 . . . 293 60 Average Temperature 111 | . 8 11 7 6 6 18 . . . 182 25 Received Heat Transfer 1006 | . . . 18 . 318 . . 39 . 255 376 Effects 2 | . . . . . . . . . . 2 . Interference 2 | . . . . . . . . . . 2 . Siege Activations . | . . . . . . . . . . . . Robots Corrupted . | . . . . . . . . . . . . Combat Hostiles . | . . . . . . . . . . . . Parts Fried 9 | . . . . . . . . 6 . . 3 Impact Corruptions 24 | . . . . . . . . 7 . 2 15 Robots Melted . | . . . . . . . . . . . . Combat Hostiles . | . . . . . . . . . . . . Parts Melted . | . . . . . . . . . . . . Heat Transferred 162 | . . 125 . . . . . . . . 37 Parts Sabotaged 1 | . . . . . . . . . . . 1 Parts Stolen 1 | . . . . . . 1 . . . . . Parts Stripped . | . . . . . . . . . . . . Power Chain Reactions . | . . . . . . . . . . . . Missiles Intercepted . | . . . . . . . . . . . . Alert | -11 -10 -10 -9 -8 -7 -7 -7 -6 -6 -6 -5 ------- Run | Jun Mat Min Mat Mat Fac Low Low Fac Was Fac Fac Peak Influence 652 | . 150 183 151 72 220 . . 89 39 652 458 Initial 170 | . . 58 70 63 32 . . . 19 27 170 Average 184 | . 99 124 101 66 83 . . 24 23 340 306 Maximum Alert Level 2 | . . . . . 1 . . . . 2 2 Low Security (%) 61 | 100 100 100 100 100 93 . . 100 100 25 17 Level 1 20 | . . . . . 6 . . . . 20 60 Level 2 18 | . . . . . . . . . . 53 22 Level 3 . | . . . . . . . . . . . . Level 4 . | . . . . . . . . . . . . Level 5 . | . . . . . . . . . . . . High Security . | . . . . . . . . . . . . Max Security . | . . . . . . . . . . . . Squads Dispatched 12 | . . . . . 1 . . 2 . 5 4 Investigation 2 | . . . . . 1 . . . . . 1 Extermination 4 | . . . . . . . . 2 . 1 1 Reinforcement 3 | . . . . . . . . . . 1 2 Assault . | . . . . . . . . . . . . Garrison 3 | . . . . . . . . . . 3 . Intercept . | . . . . . . . . . . . . Searches Triggered . | . . . . . . . . . . . . Construction Impeded 1 | . . . . . . . . . . . 1 Haulers Reinforced 1 | . . . . . . . . . . 1 . Active Scanning Responses . | . . . . . . . . . . . . Cargo Convoy Interrupts 1 | . . . . . . . . . . . 1 Stealth | -11 -10 -10 -9 -8 -7 -7 -7 -6 -6 -6 -5 --------- Run | Jun Mat Min Mat Mat Fac Low Low Fac Was Fac Fac Distress Signals 2 | . . . 1 . . . . . . . 1 Communications Jammed . | . . . . . . . . . . . . Distress Signals . | . . . . . . . . . . . . Times Spotted 104 | . 8 6 7 . 14 5 2 6 3 12 41 Peak Tracking Total 12 | . 3 3 6 . 4 3 2 2 1 4 12 Tactical Retreats 8 | . . . . . 2 . . 2 . . 4 Traps | -11 -10 -10 -9 -8 -7 -7 -7 -6 -6 -6 -5 ------- Run | Jun Mat Min Mat Mat Fac Low Low Fac Was Fac Fac Traps Triggered 6 | . . . . . 3 . . 2 . . 1 Indirectly . | . . . . . . . . . . . . Trap Hack Attempts . | . . . . . . . . . . . . Triggered . | . . . . . . . . . . . . Disarmed . | . . . . . . . . . . . . Reprogrammed . | . . . . . . . . . . . . Reused 2 | . . . . . . . . . . 2 . Traps Extracted . | . . . . . . . . . . . . Installed 2 | . . . . . . . . . . 2 . Triggered 3 | . . . . . . 1 . . . 2 . Most Traps Carried 4 | . . 4 4 4 4 3 3 3 3 3 . Machines | -11 -10 -10 -9 -8 -7 -7 -7 -6 -6 -6 -5 ---------- Run | Jun Mat Min Mat Mat Fac Low Low Fac Was Fac Fac Machines Disabled 14 | . . . . . . . . . . 13 1 Max in Single Turn 1 | . . . . . . . . . . 1 1 Machines Repaired . | . . . . . . . . . . . . Machines Sabotaged . | . . . . . . . . . . . . Overloaded Fab Kills . | . . . . . . . . . . . . Hacking | -11 -10 -10 -9 -8 -7 -7 -7 -6 -6 -6 -5 --------- Run | Jun Mat Min Mat Mat Fac Low Low Fac Was Fac Fac Machines Accessed 17 | . 1 . . . 6 . . 4 . 4 2 Terminals 11 | . 1 . . . 4 . . 2 . 4 . Fabricators 1 | . . . . . 1 . . . . . . Repair Stations 3 | . . . . . . . . 2 . . 1 Recycling Units 2 | . . . . . 1 . . . . . 1 Scanalyzers . | . . . . . . . . . . . . Garrison Access . | . . . . . . . . . . . . Total Hacks 28 | . 1 . . . 10 . . 7 . 5 5 Successful 9 | . . . . . 3 . . 1 . 1 4 Failed 19 | . 1 . . . 7 . . 6 . 4 1 Catastrophic 6 | . . . . . 3 . . 1 . 1 1 Database Lockouts . | . . . . . . . . . . . . Manual 11 | . 1 . . . 4 . . 2 . 4 . Terminals 15 | . 1 . . . 7 . . 2 . 5 . Fabricators 1 | . . . . . 1 . . . . . . Repair Stations 8 | . . . . . . . . 5 . . 3 Recycling Units 4 | . . . . . 2 . . . . . 2 Scanalyzers . | . . . . . . . . . . . . Garrison Access . | . . . . . . . . . . . . Terminal Hacks 2 | . . . . . 1 . . . . 1 . Record 2 | . . . . . 1 . . . . 1 . Fabricator Hacks . | . . . . . . . . . . . . Repair Station Hacks 3 | . . . . . . . . 1 . . 2 Scan Component 3 | . . . . . . . . 1 . . 2 Recycling Unit Hacks 3 | . . . . . 1 . . . . . 2 Report Inventory 2 | . . . . . 1 . . . . . 1 Retrieve Components 1 | . . . . . . . . . . . 1 Scanalyzer . | . . . . . . . . . . . . Garrison Access Hacks . | . . . . . . . . . . . . Unauthorized Hacks 1 | . . . . . 1 . . . . . . Terminals . | . . . . . . . . . . . . Fabricators . | . . . . . . . . . . . . Repair Stations . | . . . . . . . . . . . . Recycling Units 1 | . . . . . 1 . . . . . . Reject 1 | . . . . . 1 . . . . . . Scanalyzers . | . . . . . . . . . . . . Garrison Access . | . . . . . . . . . . . . Data Cores Recovered . | . . . . . . . . . . . . Used . | . . . . . . . . . . . . Hacking Detections 11 | . . . . . 2 . . 4 . 3 2 Full Trace Events 2 | . . . . . 1 . . . . . 1 Feedback Events . | . . . . . . . . . . . . Feedback Blocked . | . . . . . . . . . . . . Robot Schematics Acquired . | . . . . . . . . . . . . Robots Built . | . . . . . . . . . . . . Authchips . | . . . . . . . . . . . . Time . | . . . . . . . . . . . . Total Robot Build Rating . | . . . . . . . . . . . . Part Schematics Acquired . | . . . . . . . . . . . . Parts Built . | . . . . . . . . . . . . Authchips . | . . . . . . . . . . . . Time . | . . . . . . . . . . . . Total Part Build Rating . | . . . . . . . . . . . . Parts Repaired . | . . . . . . . . . . . . Time . | . . . . . . . . . . . . Parts Recycled . | . . . . . . . . . . . . Recycled Matter . | . . . . . . . . . . . . Retrieved Matter . | . . . . . . . . . . . . Retrieved Components 2 | . . . . . . . . . . . 2 Parts Scanalyzed . | . . . . . . . . . . . . Part Schematics Acquired . | . . . . . . . . . . . . Parts Damaged . | . . . . . . . . . . . . Bothacking | -11 -10 -10 -9 -8 -7 -7 -7 -6 -6 -6 -5 ------------ Run | Jun Mat Min Mat Mat Fac Low Low Fac Was Fac Fac Used RIF Installer . | . . . . . . . . . . . . Robots Hacked . | . . . . . . . . . . . . Non-combat . | . . . . . . . . . . . . Combat . | . . . . . . . . . . . . Robot Hacks Applied . | . . . . . . . . . . . . Relay Couplers Released . | . . . . . . . . . . . . Fabnet Peak Effective % . | . . . . . . . . . . . . Robots Rewired . | . . . . . . . . . . . . Allies Hacked . | . . . . . . . . . . . . Hacks Repelled . | . . . . . . . . . . . . Allies | -11 -10 -10 -9 -8 -7 -7 -7 -6 -6 -6 -5 -------- Run | Jun Mat Min Mat Mat Fac Low Low Fac Was Fac Fac Total Allies 18 | . . . . . . . . . 18 . . Largest Group 18 | . . . . . . . . . 18 6 . Highest-Rated Group 638 | . . . . . . . . . 638 246 . Highest-Rated Ally 50 | . . . . . . . . . 50 50 . Total Orders . | . . . . . . . . . . . . Ally Attacks 132 | . . . . . . . . . 99 33 . Total Damage 6484 | . . . . . . . . . 4519 1965 . Kills 29 | . . . . . . . . . 12 17 . Allies Corrupted . | . . . . . . . . . . . . Allies Melted . | . . . . . . . . . . . . Intel | -11 -10 -10 -9 -8 -7 -7 -7 -6 -6 -6 -5 ------- Run | Jun Mat Min Mat Mat Fac Low Low Fac Was Fac Fac Robot Analysis Total . | . . . . . . . . . . . . Derelict Logs Recovered 3 | . . . . . . 2 1 . . . . Drone Launches . | . . . . . . . . . . . . Drone Recoveries . | . . . . . . . . . . . . Exploration | -11 -10 -10 -9 -8 -7 -7 -7 -6 -6 -6 -5 ------------- Run | Jun Mat Min Mat Mat Fac Low Low Fac Was Fac Fac Turns Passed 4867 | 19 126 153 76 65 726 455 344 589 385 970 959 Spaces Moved 4525 | 35 200 256 183 187 771 365 358 551 246 745 628 Core 142 | 35 60 . . . . . . . . . 47 Treads . | . . . . . . . . . . . . Legs 1951 | . . . . . 338 365 224 262 246 516 . Wheels 810 | . . . . . . . . . . 229 581 Hover 29 | . 29 . . . . . . . . . . Flight 1593 | . 111 256 183 187 433 . 134 289 . . . Fastest Speed 28 | 50 37 37 31 28 28 120 54 54 110 100 50 Average Speed 86 | 50 44 40 31 28 78 120 95 83 110 108 104 Slowest Speed 145 | 50 120 120 31 28 120 120 120 120 110 120 145 Overloaded Moves . | . . . . . . . . . . . . Propulsion Burnouts . | . . . . . . . . . . . . Robots Hopped 5 | . 2 1 . . . . . 2 . . . Cave-ins Triggered . | . . . . . . . . . . . . Exploration Rate (%) 34 | 4 32 72 17 20 25 52 47 23 76 25 15 Regions Visited 11 Branch Regions 3 Pre-discovered Areas . | . . . . . . . . . . . . Known Exits Taken . | . . . . . . . . . . . . Unknown Exits Taken 9 | 1 1 1 1 1 1 1 1 . . 1 . Scrap Searched 4 | . . 1 . . . 2 1 . . . . Spaces Dug 150 | . . . . 24 26 . . 17 18 31 34 Terrain Destroyed 211 | . 28 . 26 24 26 . . 17 18 32 40 Melee 84 | . . . . . . . . 17 18 29 20 Projectile 12 | . . . . . . . . . . 3 9 AOE 115 | . 28 . 26 24 26 . . . . . 11 Terrain Rammed . | . . . . . . . . . . . . Walls Destroyed . | . . . . . . . . . . . . Machines Disabled . | . . . . . . . . . . . . Actions | -11 -10 -10 -9 -8 -7 -7 -7 -6 -6 -6 -5 --------- Run | Jun Mat Min Mat Mat Fac Low Low Fac Was Fac Fac Total 5159 | 35 229 297 199 196 861 380 360 632 330 832 808 Wait 163 | . 4 4 10 . 14 2 . 10 58 17 44 Move 4505 | 34 195 253 182 186 770 364 357 547 245 744 628 Hop 5 | . 2 1 . . . . . 2 . . . Pick Up 49 | 1 7 10 1 3 1 4 . 3 1 3 15 Fast Attach 58 | . 5 3 1 2 15 2 1 11 3 6 9 Attach 22 | . 5 . 2 2 3 . 1 1 . 1 7 Detach 12 | . 5 . . 1 5 . 1 . . . . Swap 14 | . . 5 . . 3 . . 1 1 3 1 Drop 70 | . 1 14 1 . 14 6 . 11 4 10 9 Fire 100 | . 5 7 2 2 30 . . . . 11 43 Melee 130 | . . . . . . 2 . 28 18 35 47 Ram 5 | . . . . . . . . . . . 5 Kick 4 | . . . . . 4 . . . . . . Crush . | . . . . . . . . . . . . Escape Stasis 20 | . . . . . 2 . . 18 . . . Rewire . | . . . . . . . . . . . . Trap 2 | . . . . . . . . . . 2 . Miscellaneous . | . . . . . . . . . . . . Route ------- -11/Junkyard -10/Materials (discovered 2 exits: [*Mat] / [*Min]) -10/Mines -9/Materials -8/Materials -7/Factory -7/Lower Caves -7/Lower Caves -6/Factory -6/Waste -6/Factory -5/Factory History --------- Turn | Location | Event 7 | -11/Junkyard | Discovered new exit (range 15) 20 | -11/Junkyard | Entered Materials 80 | -10/Materials | Discovered new exit (range 11) 114 | -10/Materials | Discovered new exit (range 7) 146 | -10/Materials | Entered Mines 170 | -10/Mines | Found a hidden stash of uninstalled traps 263 | -10/Mines | Discovered new exit (range 7) 299 | -10/Mines | Entered Materials 299 | -9/Materials | Evolved 2 slots: Propulsion x2 369 | -9/Materials | Discovered new exit (range 13) 375 | -9/Materials | Entered another Materials area 375 | -8/Materials | Evolved 2 slots: Propulsion x1, Utility x1 424 | -8/Materials | Discovered new exit (range 10) 440 | -8/Materials | Entered Factory 440 | -7/Factory | Evolved 2 slots: Power x1, Utility x1 1038 | -7/Factory | Discovered new exit (range 15) 1126 | -7/Factory | Build established: Scavenger-Mutant 1166 | -7/Factory | Entered Lower Caves 1168 | -7/Lower Caves | Learned Factory garrison access intel 1412 | -7/Lower Caves | Learned Factory terminal intel 1585 | -7/Lower Caves | Discovered new exit (range 7) 1621 | -7/Lower Caves | Entered another Lower Caves area 1629 | -7/Lower Caves | Discovered new exit (range 15) 1832 | -7/Lower Caves | Build established: Mutant 1898 | -7/Lower Caves | Learned 4 Factory zone layouts 1965 | -7/Lower Caves | Entered Factory 1965 | -6/Factory | Evolved 2 slots: Utility x2 1967 | -6/Factory | Loaded intel: 25 terminal locations 1968 | -6/Factory | Loaded intel: 4 garrison access locations 2554 | -6/Factory | Sucked down chute 2554 | -6/Factory | Entered Waste 2635 | -6/Waste | Spotted C-40 Crusher 2636 | -6/Waste | Spotted C-40 Crusher 2740 | -6/Waste | Spotted C-40 Crusher 2750 | -6/Waste | Warlord forces began an assault 2821 | -6/Waste | Spotted C-40 Crusher 2821 | -6/Waste | Allies destroyed C-40 Crusher 2840 | -6/Waste | Allies destroyed C-40 Crusher 2858 | -6/Waste | Spotted C-40 Crusher 2867 | -6/Waste | Allies destroyed C-40 Crusher 2887 | -6/Waste | Spotted C-40 Crusher 2891 | -6/Waste | Allies destroyed C-40 Crusher 2915 | -6/Waste | Discovered new exit (range 11) 2927 | -6/Waste | Identified exit to Factory 2939 | -6/Waste | Entered Factory 2939 | -6/Factory | Accompanied by 6 allies 3131 | -6/Factory | Garrison activated, responded to threat 3814 | -6/Factory | Discovered new exit (range 6) 3909 | -6/Factory | Entered another Factory area 3909 | -5/Factory | Evolved 2 slots: Propulsion x2 4170 | -5/Factory | Lost 3 parts (3u) 4797 | -5/Factory | Cargo convoy interrupted 4854 | -5/Factory | Core integrity fell below 50% 4860 | -5/Factory | Core integrity fell below 20% 4868 | -5/Factory | Destroyed by E-15 Imp with Backup Laser III Last Messages --------------- 04833_ Acquired Hvy. Phase Cannon. 04833_ A-27 Freighter enters garrison. 04836_ P-70 Sage resets P-70 Sage, system corruption cleaned. 04844_ Mni. Grenade Launcher destroyed. 04845_ Slug penetrates Wall. 04846_ Adv. Heat Sink destroyed. 04848_ P-70 Sage destroyed. 04849_ Slug penetrates Wall. 04851_ Dropped Hvy. Phase Cannon. 04852_ Slug penetrates Wall. 04853_ Slammed into P-70 Sage. 04860_ P-70 Sage misfires. 04861_ Penetrated by Slug. 04861_ P-70 Sage resets P-70 Sage, system corruption cleaned. 04862_ P-70 Sage resets H-66 Slayer, system corruption cleaned. 04862_ M-28 Smith fits Backup Power III on E-15 Imp. 04864_ M-28 Smith repairs P-70 Sage. 04865_ Slammed into U-05 Engineer. 04865_ ALERT: Construction progress impeded, dispatching reinforcements to local area. Map ----- +----------------------------------------------------+ | ????????????????????????????????????????????? | | ###?????????????????????????????????????????? | | #?????????????????????????????????????????? | | #?????????????????????????????????????????? | | #?????????????????????????????????????????? | | #?#???????????????????????????????????????? | | #? ???????????????????????????????????????? | | ## #??????????????????????????????????????? | | ## #??????????????????????????????????????? | | ## #??????????????????????????????????????? | | ## ######?????????????????????????????????? | | ## # // #?????????????????????????????????? | | ## # // #?????????????????????????????????? | | ## # // #?????????????????????????????????? | | #+## # ##????????????????????????????????? | | / ##############????????????????????? | | ###### [ # #????????????????????? | | ?????# # #????????????????????? | | ?????#= # ##+#####?????????????? | | ?????# # """ """ ! # ! #?????????????? | | ?????##"### """ """ # #?????????????? | | ??????###?# """ """ # """ #?????????????? | | ??????????# # """ =#??????##?#???? | | ??????????# """ """ # """ ??????## # ##?? | | ??????????# """ """ # ????????# ### | | ??????????# """ """ ##@#?????????# # | | ??????????# [ ## #?????????# ! # | | ??????????# [% ## #?????????# # | | ??????????#######+####### #?????????# # | | ??????????????# #??????????# # | | ??????????????# ##### #??????????? ?? | | ??????????????# #??# e##############+#??? | | ??????????????# #??#T #??? | | ??????????????+ #??## =#??? | | ??????????????# #???# """" [[#??? | | ??????????????# #???# """" |%#??? | | ??????????????# #???# """" ##"+###? | | ??????????????# #####+## """" # #? | | ??????????????# # # """" # ]"" #? | | ??????????????+ # " #! """ # """#? | | ????????????? # # """[!| """" #! F"#? | | ????????????? # # G !!+!! # """#? | | ############### # """==#=! #! "" #? | | "%" # " !# ##### # #? | | "" # # #???# #######? | | "%" # # #???# #??????? | | " ###/####+##"## #?###### | | # # #?# # | | ###+#### # !== # #?# # | | #??# # =!* # #?# # | +----------------------------------------------------+ Best States ------------- Heat Dissipation 59 Energy Generation 35 Energy Capacity 700 Matter Stores 300 Matter Capacity 300 Sight Range 16 Robot Scan Range 16 Terrain Scan Range 14 Terrain Scan Density 10 Additional Mass Support 9 Armor Coverage 225 Resistance: EM 25 Propulsion Shielding 90 Phase Shifting 5 Evasion (%) 64 Targeting Accuracy 11 Defensive Hacking 10 Trap Extractor Capacity 6 Item Schematics ----------------- None Robot Schematics ------------------ None Fabricated ------------ Nothing Alien Tech Used ----------------- None Achievements -------------- None Challenges ------------ None Game ------ Seed MomentumThrowingWell Manual? 0 Play Time 01:30:44 Cumulative 63.7 hours Start 2023.12.11 @ 01:28:03 End 2023.12.11 @ 03:07:29 Sessions 1 Manual Loads 0 Difficulty Rogue Special Mode None Game No. 56 Rogue 56 Adventurer 0 Explorer 0 Win Type - Total 0 Types 0/0/0/0/0/0/0/0/0 Lore% 28 Gallery% 47 Achievement% 33 Wizard Run 0 Options --------- ASCII 0 Keyboard 0 Movement Mouse Keybinds 0 Fullscreen 2 Font 18/TerminusBold Map View 76x50 Tactical HUD 1 Map Filters NONE Filters NONE Steam 1 RUN: 77fe09ea-2d45-407b-8ac2-3c53556c6c51